{"text_format":"1","workbook":"xlsx","n_sheets":29,"sheets":["リスト","表示","診療情報提供書","案内","禁忌注意事項1","禁忌注意事項2","禁忌注意事項3","選択項目","骨シンチ","骨シンチ(Dynamic)","ダットスキャン","副甲状腺シンチ","心アミロイドーシスシンチ PYP","安静心筋シンチ(Tl+BMIPP)","安静心筋シンチ(Tl+MIBG)","ガリウムシンチ","MIBG心筋シンチ","オクトレオスキャン","脳血流シンチ(ECD)","脳血流シンチ(IMP)","肝アシアロシンチ","甲状腺Tc","唾液腺","腎動態シンチ(MAG3)","腎動態シンチ(DTPA)","腎静態シンチ(DMSA)","肺血流シンチ(MAA)","肺血流シンチ(MAA)シャントのみ","肺血流シンチ(MAA)シャント率含む"],"not_rendered":{"charts":0,"images":10,"macros":1,"external_links":1,"defined_names":63,"comments":0,"pivot_tables":0},"unopened":[],"bounds":{"document_bytes":16777216,"sheet_cells":100000,"rows_first":2000,"rows_last":500,"rows_between":2000,"halvings":0,"cell_chars":16384,"cell_head_chars":4096},"cells_cut":0,"cells_raw":0,"read":"whole","date_system":"1900"}

{"sheet":"リスト","index":0,"n_rows":32,"n_cols":5,"rows_kept":32,"cut":false,"hidden":true,"merged":[]}
["年","月","日","時","分"]
[2022,1,1,1,0]
[{"$f":"A2+1","v":2023},2,2,2,10]
[{"$f":"A3+1","v":2024},3,3,3,20]
[{"$f":"A4+1","v":2025},4,4,4,30]
[2026,5,5,5,40]
[2027,6,6,6,50]
[2028,7,7,7]
[2029,8,8,8]
[2030,9,9,9]
[2031,10,10,10]
[2032,11,11,11]
[null,12,12,12]
[null,null,13,13]
[null,null,14,14]
[null,null,15,15]
[null,null,16,16]
[null,null,17,17]
[null,null,18,18]
[null,null,19,19]
[null,null,20,20]
[null,null,21,21]
[null,null,22,22]
[null,null,23,23]
[null,null,24,24]
[null,null,25]
[null,null,26]
[null,null,27]
[null,null,28]
[null,null,29]
[null,null,30]
[null,null,31]

{"sheet":"表示","index":1,"n_rows":69,"n_cols":13,"rows_kept":69,"cut":false,"hidden":true,"merged":[[0,2,0,3]]}
["検査名","シート名","年月日",null,"時間","C:\\Users\\ssiuser\\Desktop\\検査実施一覧2022年09月12日RI検査.csv","2022-09-12","11:00:00",189698,"ｺｳﾉ ﾏｻｱｷ","泌尿器科","堀川　幸保","注射 骨ｼﾝﾁ MDP"]
["注射 ｶﾞﾘｳﾑ_","ガリウム注",7,null,7,null,"2022-09-12","14:00:00",189698,"ｺｳﾉ ﾏｻｱｷ","泌尿器科","堀川　幸保","骨ｼﾝﾁMDP WholeBody+SPECT/CT ◇読影依頼あり(核医学)◇ ☆ RI前処置 特になし RI前処置 以上 ☆ 膀胱癌　骨転移評価御願い致します。"]
["Gaｼﾝﾁ","ガリウム撮",9,null,9]
["経口投与 131-I ヨウ化ナトリウム_","甲状腺131I投与",7,null,7]
["甲状腺ｼﾝﾁ(I-131) Static","甲状腺131I撮",9,null,9]
["I-131　甲状腺　全身撮影","甲状腺131I撮",9,null,9]
["放治) 経口投与 131-I ﾖｳ化ﾅﾄﾘｳﾑ_","甲状腺アブレ投与",7,null,7]
["I-131 甲状腺アブレ後　全身撮影","甲状腺アブレ撮像",9,null,9]
["注射 副腎皮質_","副腎皮質注",7,null,7]
["副腎皮質ｼﾝﾁ(アドステロール)","副腎皮質撮",9,null,9]
["注射 副腎髄質","副腎髄質注",7,null,7]
["副腎髄質ｼﾝﾁ(123I-MIBG) 6，24h後","副腎髄質撮",7,null,9]
["予約枠 副腎髄質 24h後","副腎髄質24",11,null,11]
["脳腫瘍ｼﾝﾁ(Tl） ","Tl腫瘍",7,null,7]
["ダットスキャンSPECT","ダット",7,null,9]
["骨ｼﾝﾁMDP","骨",7,null,9]
["骨ｼﾝﾁMDP","骨 造影CT",7,null,9]
["骨ｼﾝﾁHMDP","骨",7,null,9]
["骨ｼﾝﾁHMDP","骨 造影CT",7,null,9]
["心筋ｼﾝﾁ(Tc) 運動負荷+安静","Tc運動負荷",7,null,7]
["心筋ｼﾝﾁ(Tc) 薬剤ｱﾃﾞﾉｼﾝ+安静","Tc薬剤負荷 ",7,null,7]
["心筋ｼﾝﾁ(Tl) 運動負荷+安静","Tl運動負荷 ",7,null,7]
["心筋ｼﾝﾁ(Tl) 薬剤ｱﾃﾞﾉｼﾝ+安静","Tl薬剤負荷  ",7,null,7]
["心筋ｼﾝﾁ(PYP) 3時間前投与","心筋PYP",7,null,9]
["心筋ｼﾝﾁ(Tl+PYP(3h前投与))","心筋Tl+PYP",7,null,9]
["心筋ｼﾝﾁ(Tl+BMIPP) 運動負荷+安静","Tl運動負荷 ",7,null,7]
["心筋ｼﾝﾁ(Tl+BMIPP) 薬剤ｱﾃﾞﾉｼﾝ+安","Tl薬剤負荷  ",7,null,7]
["心筋ｼﾝﾁ(Tl+BMIPP) 安静","心筋Tl+BMIPP",7,null,7]
["心筋ｼﾝﾁ(Tl+MIBG) 運動負荷+安静","Tl運動負荷 ",7,null,7]
["心筋ｼﾝﾁ(Tl+MIBG) 薬剤ｱﾃﾞﾉｼﾝ+安静","Tl薬剤負荷  ",7,null,7]
["心筋ｼﾝﾁ(Tl+MIBG) 安静","心筋Tl+MIBG",7,null,7]
["MIBG H/M","HM",7,null,7]
["注射　オクトレオスキャン","オクトレオ注",7,null,7]
["オクトレオスキャン","オクトレオ撮",7,null,9]
["予約枠　オクトレオスキャン　24","オクトレオ撮24",11,null,11]
["甲状腺ｼﾝﾁ(I-123)","甲状腺NaI",7,null,9]
["甲状腺ｼﾝﾁ(TcO4-) ","甲状腺Tc",7,null,7]
["副甲状腺ｼﾝﾁ(MIBI) ","副甲状腺",7,null,7]
["脳SPECT《ドック・検診》","脳ECD",7,null,7]
["骨MDP Dynamic","3相骨",7,null,7]
["骨HMDP Dynamic","3相骨",7,null,7]
["肺血流ｼﾝﾁ(MAA)","肺血流",7,null,7]
["肺血流ｼﾝﾁ(MAA)","肺+シャント",7,null,7]
["肺血流ｼﾝﾁ(MAA)","肺血シャントのみ",7,null,7]
["ﾚﾉｸﾞﾗﾑ(DTPA)","腎動態",7,null,7]
["ﾚﾉｸﾞﾗﾑ(MAG3)","腎動態",7,null,7]
["腎ｼﾝﾁ(DMSA)","腎静態",7,null,7]
["腎ｼﾝﾁ(DMSA)","腎静態(小児)",7,null,7]
["脳血流ｼﾝﾁ(ECD) 安静","脳ECD",7,null,7]
["脳血流ｼﾝﾁ(IMP) 安静","脳IMP",7,null,7]
["唾液腺ｼﾝﾁ(TcO4-)","唾液腺",7,null,7]
["肝アシアロシンチ","アシアロ"]
["注射 骨髄_"]
["注射　ゼヴァリンインジウム"]
["放治）ゼヴァリンイットリウム"]
["放治） 注射　ゾーフィゴ_"]
["肝ｼﾝﾁ(ｺﾛｲﾄﾞ）"]
["肝胆道ｼﾝﾁ(PMT)"]
["消化管出血ｼﾝﾁ(HSAD) "]
["消化管出血ｼﾝﾁ(PYP)"]
["ﾒｯｹﾙ憩室ｼﾝﾁ(TcO4-) "]
["RI-ｱﾝｷﾞｵ(HSA) "]
["RI-ﾍﾞﾉｸﾞﾗﾌｨ(MAA) "]
["リンパシンチ"]
["心ﾌﾟｰﾙｼﾝﾁ(HSAD)"]
["心筋ｼﾝﾁ(Tl) 安静"]
["心筋ｼﾝﾁ(MIBI) 運動負荷+安静"]
["心筋ｼﾝﾁ(MIBI) 薬剤ｱﾃﾞﾉｼﾝ+安静"]
["脳槽ｼﾝﾁ(Ｉｎ-DTPA) "]

{"sheet":"診療情報提供書","index":2,"n_rows":34,"n_cols":49,"rows_kept":34,"cut":false,"hidden":false,"merged":[[25,1,25,6],[25,7,25,49],[22,46,22,49],[23,1,23,6],[23,7,23,21],[23,22,24,27],[23,28,23,31],[23,32,23,49],[24,1,24,6],[24,7,24,21],[24,28,24,31],[24,32,24,49],[26,1,29,6],[26,7,28,49],[29,7,29,49],[33,34,33,42],[33,43,33,49],[18,1,18,49],[19,1,19,49],[22,1,22,6],[22,7,22,21],[22,22,22,27],[22,28,22,41],[22,42,22,45],[20,1,20,49],[16,21,16,34],[11,1,12,12],[11,13,12,24],[11,26,11,30],[11,31,11,49],[12,26,12,30],[12,31,12,49],[13,1,13,24],[13,26,13,30],[13,31,13,47],[13,48,13,49],[15,21,15,34],[15,35,15,49],[16,35,16,49],[15,1,15,20],[16,1,16,20],[9,1,10,24],[9,26,9,33],[9,34,9,49],[10,26,10,29],[10,30,10,49],[5,1,5,8],[5,9,5,49],[6,10,6,43],[7,1,7,9],[7,10,7,16],[7,17,7,18],[7,19,7,22],[7,23,7,24],[7,26,7,29],[7,30,7,31],[7,32,7,35],[7,36,7,37],[7,38,7,41],[7,42,7,43],[7,44,7,49],[1,1,1,4],[1,5,1,14],[1,40,1,49],[2,1,3,49],[4,1,4,8],[4,9,4,49]]}
[]
[null,"発行年月日",null,null,null,{"$f":"TODAY()","v":"2023-08-23"}]
[null,"紹介患者　SPECT検査依頼書兼診療情報提供書"]
[]
[null,"検査予約➡",null,null,null,null,null,null,null,"PET/SPECT検査室：0467-46-9921"]
[null,"FAX➡",null,null,null,null,null,null,null,"PET/SPECT検査室：0467-46-9912"]
[null,null,null,null,null,null,null,null,null,null,{"$f":"IF(OR(予約年=\"\",予約月=\"\",予約日=\"\",予約時=\"\",予約分=\"\"),\"↓検査予約日時を入力してください。↓\",)","v":"↓検査予約日時を入力してください。↓"}]
[null,"検査予約日時",null,null,null,null,null,null,null,null,null,null,null,null,null,null,null,"年",null,null,null,null,null,"月",null,null,null,null,null,null,"日",null,null,null,null,null,"時",null,null,null,null,null,"分"]
[]
[null,"湘南鎌倉総合病院",null,null,null,null,null,null,null,null,null,null,null,null,null,null,null,null,null,null,null,null,null,null,null,null,"紹介元医療機関"]
[null,null,null,null,null,null,null,null,null,null,null,null,null,null,null,null,null,null,null,null,null,null,null,null,null,null,"所在地"]
[null,"診療科",null,null,null,null,null,null,null,null,null,null,null,{"$f":"IF(COUNTIF(B17,\"*負荷*\"),\"循環器科\",\"放射線科\")","v":"放射線科"},null,null,null,null,null,null,null,null,null,null,null,null,"電話番号"]
[null,null,null,null,null,null,null,null,null,null,null,null,null,null,null,null,null,null,null,null,null,null,null,null,null,null,"診療科"]
[null,"川本　雅美　先生",null,null,null,null,null,null,null,null,null,null,null,null,null,null,null,null,null,null,null,null,null,null,null,null,"医師名",null,null,null,null,null,null,null,null,null,null,null,null,null,null,null,null,null,null,null,null,null,"印"]
[]
[null,{"$f":"IF(B17=\"\",\"①検査依頼内容選択↓\",\"検査依頼内容\")","v":"①検査依頼内容選択↓"},null,null,null,null,null,null,null,null,null,null,null,null,null,null,null,null,null,null,null,{"$f":"IF(V17=\"\",\"②読影の有無選択↓\",\"読影依頼(レポート)\")","v":"②読影の有無選択↓"},null,null,null,null,null,null,null,null,null,null,null,null,null,{"$f":"IF(AJ17=\"\",\"③画像データコピーの有無選択↓\",\"画像データコピー\")","v":"③画像データコピーの有無選択↓"}]
[]
[]
[null,{"$f":"IF(B20=\"\",\"②注意禁忌次項の確認：プルダウンで選択↓\",\"注意禁忌次項\")","v":"注意禁忌次項"}]
[null,"患者に対し下記の禁忌次項が該当しないことを確認し注意事項をお伝えください。"]
[null,{"$f":"IFERROR(IF(B17=\"\",\"\",VLOOKUP(B17,禁忌注意事項1!A1:B50,2,FALSE)&CHAR(10)&VLOOKUP(B17,禁忌注意事項2!A1:B50,2,FALSE)&CHAR(10)&VLOOKUP(B17,禁忌注意事項3!A1:B50,2,FALSE)),\"\")","v":""}]
[]
[null,"ID",null,null,null,null,null,null,null,null,null,null,null,null,null,null,null,null,null,null,null,null,"生年月日",null,null,null,null,null,null,null,null,null,null,null,null,null,null,null,null,null,null,null,"性別"]
[null,"フリガナ",null,null,null,null,null,null,null,null,null,null,null,null,null,null,null,null,null,null,null,null,"電話番号",null,null,null,null,null,"自宅"]
[null,"患者氏名",null,null,null,null,null,null,null,null,null,null,null,null,null,null,null,null,null,null,null,null,null,null,null,null,null,null,"携帯"]
[null,"住所"]
[null,"臨床経過"]
[]
[]
[null,null,null,null,null,null,null,"※必ずご記入をお願い致します。"]
[]
[]
[]
[null,null,null,null,null,null,null,null,null,null,null,null,null,null,null,null,null,null,null,null,null,null,null,null,null,null,null,null,null,null,null,null,null,null,"作成修正年月日",null,null,null,null,null,null,null,null,"2023-08-18"]

{"sheet":"案内","index":3,"n_rows":222,"n_cols":1,"rows_kept":222,"cut":false,"hidden":true,"merged":[[38,0,39,11],[221,0,221,11],[216,0,220,11]]}
[]
[]
[]
[]
[]
[]
[]
[]
[]
[]
[]
[]
[]
[]
[]
[]
[]
[]
[]
[]
[]
[]
[]
[]
[]
[]
[]
[]
[]
[]
[]
[]
[]
[]
[]
[]
[]
[]
["◆お車でお越しの方へ（アクセスマップ）"]
[]
[]
[]
[]
[]
[]
[]
[]
[]
[]
[]
[]
[]
[]
[]
[]
[]
[]
[]
[]
[]
[]
[]
[]
[]
[]
[]
[]
[]
[]
[]
[]
[]
[]
[]
[]
[]
[]
[]
[]
[]
[]
[]
[]
[]
[]
[]
[]
[]
[]
[]
[]
[]
[]
[]
[]
[]
[]
[]
[]
[]
[]
[]
[]
[]
[]
[]
[]
[]
[]
[]
[]
[]
[]
[]
[]
[]
[]
[]
[]
[]
[]
[]
[]
[]
[]
[]
[]
[]
[]
[]
[]
[]
[]
[]
[]
[]
[]
[]
[]
[]
[]
[]
[]
[]
[]
[]
[]
[]
[]
[]
[]
[]
[]
[]
[]
[]
[]
[]
[]
[]
[]
[]
[]
[]
[]
[]
[]
[]
[]
[]
[]
[]
[]
[]
[]
[]
[]
[]
[]
[]
[]
[]
[]
[]
[]
[]
[]
[]
[]
[]
[]
[]
[]
[]
[]
[]
[]
[]
[]
[]
[]
[]
[]
[]
[]
[]
[]
[]
[]
[]
[]
[]
[]
[]
[]
[]
["検査の中止延期、予約時間の遅延について必ず下記までご連絡いただきますようお願い申し上げます。"]
[]
[]
[]
[]
["湘南鎌倉総合病院　PET/SPECT検査室直通：0467-46-9921"]

{"sheet":"禁忌注意事項1","index":4,"n_rows":21,"n_cols":2,"rows_kept":21,"cut":false,"hidden":true,"merged":[]}
["骨シンチ","●食事、服薬の制限は特にありません。"]
["骨シンチ(Dynamic)","●食事、服薬の制限は特にありません。"]
["ダットスキャン","●飲酒やアルコールに対し強い反応を示す患者は検査をお受けできません。"]
["副甲状腺シンチ","●食事、服薬の制限は特にありません。"]
["心アミロイドーシスシンチ PYP","●食事、服薬の制限は特にありません。"]
["安静心筋シンチ(Tl+MIBG)","●検査当日は予約時間の4時間前から検査終了まで絶食。"]
["安静心筋シンチ(Tl+BMIPP)","●検査当日は予約時間の4時間前から検査終了まで絶食。"]
["ガリウムシンチ","●食事、服薬の制限は特にありません。"]
["MIBG心筋シンチ","●食事の制限は特にありません。"]
["オクトレオスキャン","●食事、服薬の制限は特にありません。"]
["脳血流シンチ(ECD)","●食事、服薬の制限は特にありません。"]
["脳血流シンチ(IMP)","●食事、服薬の制限は特にありません。"]
["肝アシアロシンチ","●検査当日は予約時間の4時間前から検査終了まで絶食。"]
["甲状腺Tc","●検査当日は予約時間の1時間前から検査終了まで絶食。"]
["唾液腺","●検査当日は予約時間の1時間前から検査終了まで絶食。"]
["腎動態シンチ(MAG3)","●食事、服薬の制限は特にありません。"]
["腎動態シンチ(DTPA)","●食事、服薬の制限は特にありません。"]
["腎静態シンチ(DMSA)","●食事、服薬の制限は特にありません。"]
["肺血流シンチ(MAA)","●食事、服薬の制限は特にありません。"]
["肺血流シンチ(MAA)シャントのみ","●食事、服薬の制限は特にありません。"]
["肺血流シンチ(MAA)シャント率含む","●食事、服薬の制限は特にありません。"]

{"sheet":"禁忌注意事項2","index":5,"n_rows":21,"n_cols":2,"rows_kept":21,"cut":false,"hidden":true,"merged":[]}
["骨シンチ"]
["骨シンチ(Dynamic)"]
["ダットスキャン","●休薬推奨薬(休薬日数)：パキシル(5),サインバルタ(3),レクサプロ(8),レクサプロ(5),ジェイゾロフト(6),トフラニール(5),アナフラニール(21),オーラップ(28),メマンチン(5),エフェドリン(0.4),ネオシネジン,プソイドエフェドリ,ヒロポン(3),リタリン(2),サノレックス(3),モディオダール(3),フルナール,気管支拡張剤,鼻炎薬"]
["副甲状腺シンチ"]
["心アミロイドーシスシンチ PYP"]
["安静心筋シンチ(Tl+MIBG)","●レセルピン、三環系抗うつ剤、塩酸ラベタロールは、検査前12時間以上休薬すること。"]
["安静心筋シンチ(Tl+BMIPP)"]
["ガリウムシンチ"]
["MIBG心筋シンチ","●レセルピン、三環系抗うつ剤、塩酸ラベタロールは、検査前12時間以上休薬すること。"]
["オクトレオスキャン"]
["脳血流シンチ(ECD)"]
["脳血流シンチ(IMP)"]
["肝アシアロシンチ","●服薬の制限は特にありません。"]
["甲状腺Tc"]
["唾液腺"]
["腎動態シンチ(MAG3)"]
["腎動態シンチ(DTPA)"]
["腎静態シンチ(DMSA)"]
["肺血流シンチ(MAA)"]
["肺血流シンチ(MAA)シャントのみ"]
["肺血流シンチ(MAA)シャント率含む"]

{"sheet":"禁忌注意事項3","index":6,"n_rows":21,"n_cols":2,"rows_kept":21,"cut":false,"hidden":true,"merged":[]}
["骨シンチ"]
["骨シンチ(Dynamic)"]
["ダットスキャン","上記の休薬推奨薬を休薬せずに検査を依頼される場合は臨床経過にご記載ください。"]
["副甲状腺シンチ"]
["心アミロイドーシスシンチ PYP"]
["安静心筋シンチ(Tl+MIBG)","上記の休薬推奨薬を休薬せずに検査を依頼される場合は臨床経過にご記載ください。"]
["安静心筋シンチ(Tl+BMIPP)"]
["ガリウムシンチ"]
["MIBG心筋シンチ","上記の休薬推奨薬を休薬せずに検査を依頼される場合は臨床経過にご記載ください。"]
["オクトレオスキャン"]
["脳血流シンチ(ECD)"]
["脳血流シンチ(IMP)"]
["肝アシアロシンチ"]
["甲状腺Tc"]
["唾液腺"]
["腎動態シンチ(MAG3)"]
["腎動態シンチ(DTPA)"]
["腎静態シンチ(DMSA)"]
["肺血流シンチ(MAA)"]
["肺血流シンチ(MAA)シャントのみ"]
["肺血流シンチ(MAA)シャント率含む"]

{"sheet":"選択項目","index":7,"n_rows":21,"n_cols":1,"rows_kept":21,"cut":false,"hidden":true,"merged":[]}
["骨シンチ"]
["骨シンチ(Dynamic)"]
["ダットスキャン"]
["副甲状腺シンチ"]
["心アミロイドーシスシンチ PYP"]
["安静心筋シンチ(Tl+MIBG)"]
["安静心筋シンチ(Tl+BMIPP)"]
["ガリウムシンチ"]
["MIBG心筋シンチ"]
["オクトレオスキャン"]
["脳血流シンチ(ECD)"]
["脳血流シンチ(IMP)"]
["肝アシアロシンチ"]
["甲状腺Tc"]
["唾液腺"]
["腎動態シンチ(MAG3)"]
["腎動態シンチ(DTPA)"]
["腎静態シンチ(DMSA)"]
["肺血流シンチ(MAA)"]
["肺血流シンチ(MAA)シャントのみ"]
["肺血流シンチ(MAA)シャント率含む"]

{"sheet":"骨シンチ","index":8,"n_rows":44,"n_cols":12,"rows_kept":44,"cut":false,"hidden":true,"merged":[[8,6,9,6],[8,7,9,7],[39,0,39,11],[8,8,9,8],[8,9,9,9],[8,10,9,10],[8,11,9,11],[8,0,9,1],[8,2,9,2],[8,3,9,3],[8,4,9,4],[8,5,9,5],[6,9,7,9],[6,10,7,10],[6,11,7,11],[6,4,7,4],[0,0,1,1],[0,2,1,9],[6,0,7,1],[0,10,1,11],[2,0,3,11],[4,0,5,11],[6,2,7,2],[6,3,7,3],[6,5,7,5],[6,6,7,6],[6,7,7,7],[6,8,7,8]]}
["お名前",null,{"$f":"IF(氏名=\"\",\"\",氏名)","v":""},null,null,null,null,null,null,null,"様"]
[]
["SPECT‐CT　予約および説明書"]
[]
["検査名：骨シンチ"]
[]
["注射",null,{"$f":"IF(予約年=\"\",\"\",予約年)","v":""},"年",{"$f":"IF(予約月=\"\",\"\",予約月)","v":""},"月",{"$f":"IF(予約日=\"\",\"\",予約日)","v":""},"日",{"$f":"IF(予約時=\"\",\"\",予約時)","v":""},"時",{"$f":"IF(予約分=\"\",\"\",予約分)","v":""},"分"]
[]
["撮影",null,null,"年",11,"月",22,"日",{"$f":"IF(I7=\"\",\"\",I7+3)","v":""},"時",{"$f":"IF(K7=\"\",\"\",K7)","v":""},"分"]
[]
[]
["※予約時間の３０分前までに病院お越しいただき、紹介窓口で受付後、　"]
["１５分前までに先端医療センター１F　D１４  PET/SPECT受付へお越しください。"]
[]
["●核医学検査とは"]
["　からだの特定の部位にあつまる放射性同位元素(ﾗｼﾞｵｱｲｿﾄｰﾌﾟ)を静脈注射し、"]
["　各臓器や組織へ集まる様子を撮影することで、その機能や形態を調べる検査です。"]
[]
["●食事・服薬・服装に関して"]
["　飲食・服薬の制限はありません。"]
["　ボタン、金具がある場合は着替えていただきます。着替えやすい服装でお越しください。"]
["　補聴器、眼鏡、アクセサリ類は外していただきます。"]
[]
["●検査の流れ"]
["〇全体でかかる時間約４時間前後"]
["　注射(約５分)⇒休憩(約３時間)⇒撮影(約３０分)"]
["　休憩時間は、ご自由にお過ごしください。"]
["　検査直前に排尿していただきます。"]
["　※お薬が尿から排出されるので汚染防止のために検査当日は"]
["　男性の方も座った状態での排尿をお願いします。"]
[]
["●検査後"]
["　検査終了後も体内に少量の放射性物質が残っています。"]
["　検査当日は、妊婦や乳幼児との接触はなるべく避けてください。"]
[]
["●注意事項とお願い"]
["　・妊娠している可能性のある方や授乳中の方は申し出てください。"]
["　 授乳中の方は一定期間授乳を控える必要があります。"]
[]
["　・検査日時の変更やキャンセルは検査前営業日16時までに必ず下記へお知らせください。"]
["　 その他、検査についてご不明な点がございましたら下記へご連絡ください。"]
[]
["湘南鎌倉総合病院　　",null,null,"営業日時　平日・土曜日9時～16時"]
["先端医療センター１F　D14　PET/SPECT検査室直通　Tel:0467-46-9921"]

{"sheet":"骨シンチ(Dynamic)","index":9,"n_rows":44,"n_cols":12,"rows_kept":44,"cut":false,"hidden":true,"merged":[[0,0,1,1],[0,2,1,9],[0,10,1,11],[6,6,7,6],[6,7,7,7],[6,8,7,8],[6,9,7,9],[6,10,7,10],[6,0,7,1],[6,2,7,2],[6,3,7,3],[6,4,7,4],[6,5,7,5],[39,0,39,11],[8,2,9,2],[8,3,9,3],[8,4,9,4],[8,5,9,5],[8,6,9,6],[8,7,9,7],[16,18,17,19],[16,20,17,25],[4,0,5,11],[2,0,3,11],[8,0,9,1],[16,15,17,17],[8,8,9,8],[8,9,9,9],[8,10,9,10],[8,11,9,11],[16,14,17,14],[6,11,7,11]]}
["お名前",null,{"$f":"IF(氏名=\"\",\"\",氏名)","v":""},null,null,null,null,null,null,null,"様"]
[]
["SPECT‐CT　予約および説明書"]
[]
["検査名：骨シンチ(Dynamic)"]
[]
["注射・撮影",null,{"$f":"IF(予約年=\"\",\"\",予約年)","v":""},"年",{"$f":"IF(予約月=\"\",\"\",予約月)","v":""},"月",{"$f":"IF(予約日=\"\",\"\",予約日)","v":""},"日",{"$f":"IF(予約時=\"\",\"\",予約時)","v":""},"時",{"$f":"IF(予約分=\"\",\"\",予約分)","v":""},"分"]
[]
["撮影",null,null,"年",11,"月",22,"日",{"$f":"IF(I7=\"\",\"\",I7+3)","v":""},"時",{"$f":"IF(K7=\"\",\"\",K7)","v":""},"分"]
[]
[]
["※予約時間の３０分前までに病院お越しいただき、紹介窓口で受付後、　"]
["１５分前までに先端医療センター１F　D１４  PET/SPECT受付へお越しください。"]
[]
["●核医学検査とは"]
["　からだの特定の部位にあつまる放射性同位元素(ﾗｼﾞｵｱｲｿﾄｰﾌﾟ)を静脈注射し、"]
["　各臓器や組織へ集まる様子を撮影することで、その機能や形態を調べる検査です。"]
[]
["●食事・服薬・服装に関して"]
["　飲食・服薬の制限はありません。"]
["　ボタン、金具がある場合は着替えていただきます。着替えやすい服装でお越しください。"]
["　補聴器、眼鏡、アクセサリ類は外していただきます。"]
[]
["●検査の流れ"]
["〇全体でかかる時間約４時間前後"]
["　寝台上で注射・撮影(約２０分)⇒休憩(約２時間半)⇒撮影(約３０分)"]
["　休憩時間は、ご自由にお過ごしください。"]
["　検査直前に排尿していただきます。"]
["　※お薬が尿から排出されるので汚染防止のために検査当日は"]
["　男性の方も座った状態での排尿をお願いします。"]
[]
["●検査後"]
["　検査終了後も体内に少量の放射性物質が残っています。"]
["　検査当日は、妊婦や乳幼児との接触はなるべく避けてください。"]
[]
["●注意事項とお願い"]
["　・妊娠している可能性のある方や授乳中の方は申し出てください。"]
["　 授乳中の方は一定期間授乳を控える必要があります。"]
[]
["　・検査日時の変更やキャンセルは検査前営業日16時までに必ず下記へお知らせください。"]
["　 その他、検査についてご不明な点がございましたら下記へご連絡ください。"]
[]
["湘南鎌倉総合病院　　",null,null,"営業日時　平日・土曜日9時～16時"]
["先端医療センター１F　D14　PET/SPECT検査室直通　Tel:0467-46-9921"]

{"sheet":"ダットスキャン","index":10,"n_rows":44,"n_cols":12,"rows_kept":44,"cut":false,"hidden":true,"merged":[[8,11,9,11],[0,0,1,1],[0,2,1,9],[0,10,1,11],[8,6,9,6],[8,7,9,7],[8,8,9,8],[8,9,9,9],[8,10,9,10],[8,3,9,3],[8,4,9,4],[8,5,9,5],[39,0,39,11],[2,0,3,11],[4,0,5,11],[6,2,7,2],[6,3,7,3],[6,5,7,5],[6,6,7,6],[6,7,7,7],[6,8,7,8],[6,9,7,9],[6,10,7,10],[6,11,7,11],[6,4,7,4],[6,0,7,1],[8,0,9,1],[8,2,9,2]]}
["お名前",null,{"$f":"IF(氏名=\"\",\"\",氏名)","v":""},null,null,null,null,null,null,null,"様"]
[]
["SPECT‐CT　予約および説明書"]
[]
["検査名：ダットスキャン"]
[]
["注射",null,{"$f":"IF(予約年=\"\",\"\",予約年)","v":""},"年",{"$f":"IF(予約月=\"\",\"\",予約月)","v":""},"月",{"$f":"IF(予約日=\"\",\"\",予約日)","v":""},"日",{"$f":"IF(予約時=\"\",\"\",予約時)","v":""},"時",{"$f":"IF(予約分=\"\",\"\",予約分)","v":""},"分"]
[]
["撮影",null,null,"年",11,"月",22,"日",{"$f":"IF(I7=\"\",\"\",I7+3)","v":""},"時",{"$f":"IF(K7=\"\",\"\",K7)","v":""},"分"]
[]
[]
["※予約時間の３０分前までに病院お越しいただき、紹介窓口で受付後、　"]
["１５分前までに先端医療センター１F　D１４  PET/SPECT受付へお越しください。"]
[]
["●核医学検査とは"]
["　からだの特定の部位にあつまる放射性同位元素(ﾗｼﾞｵｱｲｿﾄｰﾌﾟ)を静脈注射し、"]
["　各臓器や組織へ集まる様子を撮影することで、その機能や形態を調べる検査です。"]
[]
["●食事・服薬・服装に関して"]
["  飲食の制限はありません。服薬の制限があります。"]
["  気管支拡張剤・鼻炎薬・抗うつ剤などを内服中の方は、検査結果に"]
["  影響のある成分が含まれている可能性がありますので、主治医と相談してください。"]
["　補聴器、眼鏡、アクセサリ類は外していただきます。"]
[]
["●検査の流れ"]
["〇全体でかかる時間約４時間"]
["　注射(約５分)⇒休憩(約３時間)⇒撮影(約４０分)"]
["　休憩時間は、ご自由にお過ごしください。"]
[]
["●検査後"]
["　検査終了後も体内に少量の放射性物質が残っています。"]
["　検査当日は、妊婦や乳幼児との接触はなるべく避けてください。"]
[]
["●注意事項とお願い"]
["　・妊娠している可能性のある方や授乳中の方は申し出てください。"]
["　 授乳中の方は一定期間授乳を控える必要があります。"]
["※この検査薬にはアルコールが含まれています。アルコール過敏症の方は"]
["検査ができない場合がありますので主治医にお申し出ください。"]
[]
["　・検査日時の変更やキャンセルは検査前営業日16時までに必ず下記へお知らせください。"]
["　 その他、検査についてご不明な点がございましたら下記へご連絡ください。"]
[]
["湘南鎌倉総合病院　　",null,null,"営業日時　平日・土曜日9時～16時"]
["先端医療センター１F　D14　PET/SPECT検査室直通　Tel:0467-46-9921"]

{"sheet":"副甲状腺シンチ","index":11,"n_rows":42,"n_cols":12,"rows_kept":42,"cut":false,"hidden":true,"merged":[[6,11,7,11],[0,0,1,1],[0,2,1,9],[0,10,1,11],[6,6,7,6],[6,7,7,7],[6,8,7,8],[6,9,7,9],[6,10,7,10],[2,0,3,11],[4,0,5,11],[6,0,7,1],[6,2,7,2],[6,3,7,3],[6,4,7,4],[6,5,7,5],[8,6,9,6],[8,7,9,7],[37,0,37,11],[8,8,9,8],[8,9,9,9],[8,10,9,10],[8,11,9,11],[8,0,9,1],[8,2,9,2],[8,3,9,3],[8,4,9,4],[8,5,9,5]]}
["お名前",null,{"$f":"IF(氏名=\"\",\"\",氏名)","v":""},null,null,null,null,null,null,null,"様"]
[]
["SPECT‐CT　予約および説明書"]
[]
["検査名：副甲状腺シンチ"]
[]
["注射",null,{"$f":"IF(予約年=\"\",\"\",予約年)","v":""},"年",{"$f":"IF(予約月=\"\",\"\",予約月)","v":""},"月",{"$f":"IF(予約日=\"\",\"\",予約日)","v":""},"日",{"$f":"IF(予約時=\"\",\"\",予約時)","v":""},"時",{"$f":"IF(予約分=\"\",\"\",予約分)","v":""},"分"]
[]
["撮影",null,null,"年",null,"月",null,"日",{"$f":"IF(I7=\"\",\"\",IF(I7+30>50,I7+3,I7+2))","v":""},"時",{"$f":"IF(K7=\"\",\"\",IF(K7+30>50,\"00\",K7+30))","v":""},"分"]
[]
[]
["※予約時間の３０分前までに病院お越しいただき、紹介窓口で受付後、　"]
["１５分前までに先端医療センター１F　D１４  PET/SPECT受付へお越しください。"]
[]
["●核医学検査とは"]
["　からだの特定の部位にあつまる放射性同位元素(ﾗｼﾞｵｱｲｿﾄｰﾌﾟ)を静脈注射し、"]
["　各臓器や組織へ集まる様子を撮影することで、その機能や形態を調べる検査です。"]
[]
["●食事・服薬・服装に関して"]
["  飲食・服薬の制限はありません"]
["　首周りにボタン、金具がある場合は着替えていただきます。"]
["　補聴器、眼鏡、アクセサリ類は外していただきます。"]
["　"]
["●検査の流れ"]
["〇全体でかかる時間約3時間"]
["　１回目：注射(約５分)⇒休憩(１０分)⇒撮影(約２０分)⇒休憩(２時間半)"]
["　２回目：撮影(約２０分)"]
["　休憩の２時間半は、ご自由にお過ごしください。"]
[]
["●検査後"]
["　検査終了後も体内に少量の放射性物質が残っています。"]
["　検査当日は妊婦や乳幼児との接触はなるべく避けてください。"]
[]
["●注意事項とお願い"]
["　・妊娠している可能性のある方や授乳中の方は申し出てください。"]
["　 授乳中の方は一定期間授乳を控える必要があります。"]
[]
["　・検査日時の変更やキャンセルは検査前営業日16時までに必ず下記へお知らせください。"]
["　 その他、検査についてご不明な点がございましたら下記へご連絡ください。"]
[]
["湘南鎌倉総合病院　　",null,null,"営業日時　平日・土曜日9時～16時"]
["先端医療センター１F　D14　PET/SPECT検査室直通　Tel:0467-46-9921"]

{"sheet":"心アミロイドーシスシンチ PYP","index":12,"n_rows":41,"n_cols":12,"rows_kept":41,"cut":false,"hidden":true,"merged":[[8,6,9,6],[8,7,9,7],[36,0,36,11],[8,8,9,8],[8,9,9,9],[8,10,9,10],[8,11,9,11],[8,0,9,1],[8,2,9,2],[8,3,9,3],[8,4,9,4],[8,5,9,5],[6,9,7,9],[6,10,7,10],[6,11,7,11],[6,4,7,4],[0,0,1,1],[0,2,1,9],[6,0,7,1],[0,10,1,11],[2,0,3,11],[4,0,5,11],[6,2,7,2],[6,3,7,3],[6,5,7,5],[6,6,7,6],[6,7,7,7],[6,8,7,8]]}
["お名前",null,{"$f":"IF(氏名=\"\",\"\",氏名)","v":""},null,null,null,null,null,null,null,"様"]
[]
["SPECT‐CT　予約および説明書"]
[]
["検査名：心アミロイドーシスシンチ PYP"]
[]
["注射",null,{"$f":"IF(予約年=\"\",\"\",予約年)","v":""},"年",{"$f":"IF(予約月=\"\",\"\",予約月)","v":""},"月",{"$f":"IF(予約日=\"\",\"\",予約日)","v":""},"日",{"$f":"IF(予約時=\"\",\"\",予約時)","v":""},"時",{"$f":"IF(予約分=\"\",\"\",予約分)","v":""},"分"]
[]
["撮影",null,2021,"年",11,"月",22,"日",{"$f":"I7+3","v":{"$error":"#VALUE!"}},"時",{"$f":"K7","v":""},"分"]
[]
[]
["※予約時間の３０分前までに病院お越しいただき、紹介窓口で受付後、　"]
["１５分前までに先端医療センター１F　D１４  PET/SPECT受付へお越しください。"]
[]
["●核医学検査とは"]
["　からだの特定の部位にあつまる放射性同位元素(ﾗｼﾞｵｱｲｿﾄｰﾌﾟ)を静脈注射し、"]
["　各臓器や組織へ集まる様子を撮影することで、その機能や形態を調べる検査です。"]
[]
["●食事・服薬・服装に関して"]
["　飲食・服薬の制限はありません。"]
["　胸まわりにボタン金具がある場合は、検査着に着替えていただきます。"]
["　アクセサリ類は外していただきます。着替えやすい服装でお越しください。"]
["　"]
["●検査の流れ"]
["〇全体でかかる時間約４時間"]
["　注射(約５分)⇒休憩(３時間)⇒撮影(約２０分)"]
["　休憩の３時間は、ご自由にお過ごしください。"]
[]
["●検査後"]
["　検査終了後も体内に少量の放射性物質が残っています。"]
["　検査当日は妊婦や乳幼児との接触はなるべく避けてください。"]
[]
["●注意事項とお願い"]
["　・妊娠している可能性のある方や授乳中の方は申し出てください。"]
["　 授乳中の方は一定期間授乳を控える必要があります。"]
[]
["　・検査日時の変更やキャンセルは検査前営業日16時までに必ず下記へお知らせください。"]
["　 その他、検査についてご不明な点がございましたら下記へご連絡ください。"]
[]
["湘南鎌倉総合病院　　",null,null,"営業日時　平日・土曜日9時～16時"]
["先端医療センター１F　D14　PET/SPECT検査室直通　Tel:0467-46-9921"]

{"sheet":"安静心筋シンチ(Tl+BMIPP)","index":13,"n_rows":42,"n_cols":12,"rows_kept":42,"cut":false,"hidden":true,"merged":[[8,6,9,6],[8,7,9,7],[37,0,37,11],[8,8,9,8],[8,9,9,9],[8,10,9,10],[8,11,9,11],[6,8,7,8],[6,9,7,9],[6,10,7,10],[6,11,7,11],[6,4,7,4],[0,0,1,1],[0,2,1,9],[0,10,1,11],[6,0,7,1],[8,0,9,1],[8,2,9,2],[8,3,9,3],[8,4,9,4],[8,5,9,5],[2,0,3,11],[4,0,5,11],[6,2,7,2],[6,3,7,3],[6,5,7,5],[6,6,7,6],[6,7,7,7]]}
["お名前",null,{"$f":"IF(氏名=\"\",\"\",氏名)","v":""},null,null,null,null,null,null,null,"様"]
[]
["SPECT‐CT　予約および説明書"]
[]
["検査名：安静心筋シンチ(Tl+BMIPP)"]
[]
["注射・撮影",null,{"$f":"IF(予約年=\"\",\"\",予約年)","v":""},"年",{"$f":"IF(予約月=\"\",\"\",予約月)","v":""},"月",{"$f":"IF(予約日=\"\",\"\",予約日)","v":""},"日",{"$f":"IF(予約時=\"\",\"\",予約時)","v":""},"時",{"$f":"IF(予約分=\"\",\"\",予約分)","v":""},"分"]
[]
["撮影",null,null,"年",null,"月",null,"日",{"$f":"I7+3","v":{"$error":"#VALUE!"}},"時",{"$f":"K7","v":""},"分"]
[]
[]
["※予約時間の３０分前までに病院お越しいただき、紹介窓口で受付後、　"]
["１５分前までに先端医療センター１F　D１４  PET/SPECT受付へお越しください。"]
[]
["●核医学検査とは"]
["　からだの特定の部位にあつまる放射性同位元素(ﾗｼﾞｵｱｲｿﾄｰﾌﾟ)を静脈注射し、"]
["　各臓器や組織へ集まる様子を撮影することで、その機能や形態を調べる検査です。"]
[]
["●食事・服薬・服装に関して"]
["　当日は検査開始の４時間前から検査終了まで食事を摂らないでください。"]
["　服薬の制限はありません。"]
["　胸まわりにボタン金具がある場合は、検査着に着替えていただきます。"]
["　アクセサリ類は外していただきます。着替えやすい服装でお越しください。"]
["　"]
["●検査の流れ"]
["〇全体でかかる時間約４時間"]
["　１回目：注射(約５分)⇒撮影(約２０分)⇒休憩(約２時間半)"]
["　２回目：撮影(約２０分)"]
[]
["●検査後"]
["　検査終了後も体内に少量の放射性物質が残っています。"]
["　検査当日は妊婦や乳幼児との接触はなるべく避けてください。"]
[]
["●注意事項とお願い"]
["　・妊娠している可能性のある方や授乳中の方は申し出てください。"]
["　 授乳中の方は一定期間授乳を控える必要があります。"]
[]
["　・検査日時の変更やキャンセルは検査前営業日16時までに必ず下記へお知らせください。"]
["　 その他、検査についてご不明な点がございましたら下記へご連絡ください。"]
[]
["湘南鎌倉総合病院　　",null,null,"営業日時　平日・土曜日9時～16時"]
["先端医療センター１F　D14　PET/SPECT検査室直通　Tel:0467-46-9921"]

{"sheet":"安静心筋シンチ(Tl+MIBG)","index":14,"n_rows":42,"n_cols":12,"rows_kept":42,"cut":false,"hidden":true,"merged":[[8,6,9,6],[8,7,9,7],[37,0,37,11],[8,8,9,8],[8,9,9,9],[8,10,9,10],[8,11,9,11],[6,8,7,8],[6,9,7,9],[6,10,7,10],[6,11,7,11],[6,4,7,4],[0,0,1,1],[0,2,1,9],[0,10,1,11],[6,0,7,1],[8,0,9,1],[8,2,9,2],[8,3,9,3],[8,4,9,4],[8,5,9,5],[2,0,3,11],[4,0,5,11],[6,2,7,2],[6,3,7,3],[6,5,7,5],[6,6,7,6],[6,7,7,7]]}
["お名前",null,{"$f":"IF(氏名=\"\",\"\",氏名)","v":""},null,null,null,null,null,null,null,"様"]
[]
["SPECT‐CT　予約および説明書"]
[]
["検査名：安静心筋シンチ(Tl+MIBG)"]
[]
["注射・撮影",null,{"$f":"IF(予約年=\"\",\"\",予約年)","v":""},"年",{"$f":"IF(予約月=\"\",\"\",予約月)","v":""},"月",{"$f":"IF(予約日=\"\",\"\",予約日)","v":""},"日",{"$f":"IF(予約時=\"\",\"\",予約時)","v":""},"時",{"$f":"IF(予約分=\"\",\"\",予約分)","v":""},"分"]
[]
["撮影",null,null,"年",null,"月",null,"日",{"$f":"I7+3","v":{"$error":"#VALUE!"}},"時",{"$f":"K7","v":""},"分"]
[]
[]
["※予約時間の３０分前までに病院お越しいただき、紹介窓口で受付後、　"]
["１５分前までに先端医療センター１F　D１４  PET/SPECT受付へお越しください。"]
[]
["●核医学検査とは"]
["　からだの特定の部位にあつまる放射性同位元素(ﾗｼﾞｵｱｲｿﾄｰﾌﾟ)を静脈注射し、"]
["　各臓器や組織へ集まる様子を撮影することで、その機能や形態を調べる検査です。"]
[]
["●食事・服薬・服装に関して"]
["　当日は検査開始の４時間前から検査終了まで食事を摂らないでください。"]
["  【睡眠薬、頭痛薬、抗うつ剤、鼻炎薬類】の服用を前日から検査終了まで控えてください。"]
["　胸まわりにボタン金具がある場合は、検査着に着替えていただきます。"]
["　アクセサリ類は外していただきます。着替えやすい服装でお越しください。"]
["　"]
["●検査の流れ"]
["〇全体でかかる時間約４時間"]
["　１回目：注射(約５分)⇒撮影(約３０分)⇒休憩(約２時間半)"]
["　２回目：撮影(約３０分)"]
[]
["●検査後"]
["　検査終了後も体内に少量の放射性物質が残っています。"]
["　検査当日は妊婦や乳幼児との接触はなるべく避けてください。"]
[]
["●注意事項とお願い"]
["　・妊娠している可能性のある方や授乳中の方は申し出てください。"]
["　 授乳中の方は一定期間授乳を控える必要があります。"]
[]
["　・検査日時の変更やキャンセルは検査前営業日16時までに必ず下記へお知らせください。"]
["　 その他、検査についてご不明な点がございましたら下記へご連絡ください。"]
[]
["湘南鎌倉総合病院　　",null,null,"営業日時　平日・土曜日9時～16時"]
["先端医療センター１F　D14　PET/SPECT検査室直通　Tel:0467-46-9921"]

{"sheet":"ガリウムシンチ","index":15,"n_rows":41,"n_cols":12,"rows_kept":41,"cut":false,"hidden":true,"merged":[[36,0,36,11],[2,0,3,11],[4,0,5,11],[6,0,7,1],[0,0,1,1],[0,2,1,9],[0,10,1,11],[6,2,7,2],[8,6,9,6],[8,7,9,7],[8,8,9,8],[6,4,7,4],[6,5,7,5],[6,6,7,6],[6,7,7,7],[6,8,7,8],[6,3,7,3],[8,0,9,1],[8,2,9,2],[8,3,9,3],[8,4,9,4],[8,5,9,5],[8,9,9,9],[8,10,9,10],[8,11,9,11],[6,10,7,10],[6,11,7,11],[6,9,7,9]]}
["お名前",null,{"$f":"IF(氏名=\"\",\"\",氏名)","v":""},null,null,null,null,null,null,null,"様"]
[]
["SPECT‐CT　予約および説明書"]
[]
["検査名：ガリウムシンチ"]
[]
["注射",null,{"$f":"IF(予約年=\"\",\"\",予約年)","v":""},"年",{"$f":"IF(予約月=\"\",\"\",予約月)","v":""},"月",{"$f":"IF(予約日=\"\",\"\",予約日)","v":""},"日",{"$f":"IF(予約時=\"\",\"\",予約時)","v":""},"時",{"$f":"IF(予約分=\"\",\"\",予約分)","v":""},"分"]
[]
["撮影",null,null,null,{"$f":"E7","v":""},"月",{"$f":"IF(G7+2>28,\"\",G7+2)","v":{"$error":"#VALUE!"}},"日",null,"時",null,"分"]
[]
[]
["※予約時間の３０分前までに病院お越しいただき、紹介窓口で受付後、　"]
["１５分前までに先端医療センター１F　D１４  PET/SPECT受付へお越しください。"]
[]
["●核医学検査とは"]
["　からだの特定の部位にあつまる放射性同位元素(ﾗｼﾞｵｱｲｿﾄｰﾌﾟ)を静脈注射し、"]
["　各臓器や組織へ集まる様子を撮影することで、その機能や形態を調べる検査です。"]
[]
["●食事・服薬・服装に関して"]
["　飲食・服薬の制限はありません。"]
["　ボタン、金具がある場合は着替えていただきます。着替えやすい服装でお越しください。"]
["　補聴器、眼鏡、アクセサリ類は外していただきます。"]
[]
["●検査の流れ"]
[null,"1日目：注射（約５分）"]
[null,"3日目：撮影（約40分）"]
[]
["●検査後"]
["　検査終了後も体内に少量の放射性物質が残っています。"]
["　お薬の注射後から２～３日は妊婦や乳幼児は放射線感受性が高いため、"]
["　接触はなるべく避けてください。"]
[]
["●注意事項とお願い"]
["　・妊娠している可能性のある方や授乳中の方は申し出てください。"]
["　 授乳中の方は一定期間授乳を控える必要があります。"]
[]
["　・検査日時の変更やキャンセルは検査前3営業日16時までに必ず下記へお知らせください。"]
["　 その他、検査についてご不明な点がございましたら下記へご連絡ください。"]
[]
["湘南鎌倉総合病院　　",null,null,"営業日時　平日・土曜日9時～16時"]
["先端医療センター１F　D14　PET/SPECT検査室直通　Tel:0467-46-9921"]

{"sheet":"MIBG心筋シンチ","index":16,"n_rows":42,"n_cols":12,"rows_kept":42,"cut":false,"hidden":true,"merged":[[8,6,9,6],[8,7,9,7],[37,0,37,11],[8,8,9,8],[8,9,9,9],[8,10,9,10],[8,11,9,11],[6,8,7,8],[6,9,7,9],[6,10,7,10],[6,11,7,11],[6,4,7,4],[0,0,1,1],[0,2,1,9],[0,10,1,11],[6,0,7,1],[8,0,9,1],[8,2,9,2],[8,3,9,3],[8,4,9,4],[8,5,9,5],[2,0,3,11],[4,0,5,11],[6,2,7,2],[6,3,7,3],[6,5,7,5],[6,6,7,6],[6,7,7,7]]}
["お名前",null,{"$f":"IF(氏名=\"\",\"\",氏名)","v":""},null,null,null,null,null,null,null,"様"]
[]
["SPECT‐CT　予約および説明書"]
[]
["検査名：MIBG心筋シンチ"]
[]
["注射・撮影",null,{"$f":"IF(予約年=\"\",\"\",予約年)","v":""},"年",{"$f":"IF(予約月=\"\",\"\",予約月)","v":""},"月",{"$f":"IF(予約日=\"\",\"\",予約日)","v":""},"日",{"$f":"IF(予約時=\"\",\"\",予約時)","v":""},"時",{"$f":"IF(予約分=\"\",\"\",予約分)","v":""},"分"]
[]
["撮影",null,null,"年",null,"月",null,"日",{"$f":"I7+3","v":{"$error":"#VALUE!"}},"時",{"$f":"K7","v":""},"分"]
[]
[]
["※予約時間の３０分前までに病院お越しいただき、紹介窓口で受付後、　"]
["１５分前までに先端医療センター１F　D１４  PET/SPECT受付へお越しください。"]
[]
["●核医学検査とは"]
["　からだの特定の部位にあつまる放射性同位元素(ﾗｼﾞｵｱｲｿﾄｰﾌﾟ)を静脈注射し、"]
["　各臓器や組織へ集まる様子を撮影することで、その機能や形態を調べる検査です。"]
[]
["●食事・服薬・服装に関して"]
["  飲食の制限はありません。服薬の制限があります。"]
["  レセピン・三環系抗うつ剤・塩酸ラベタロールなどを内服中の方は、検査結果に"]
["  影響のある成分が含まれている可能性がありますので、主治医と相談してください。"]
["　ボタン、金具がある場合は着替えていただきます。着替えやすい服装でお越しください。"]
["　"]
["●検査の流れ"]
["〇全体でかかる時間約3時間"]
["　注射(約５分)⇒休憩(約15分)⇒撮影(約5分)⇒休憩(約3時間)⇒撮影(約5分)"]
["　休憩時間は、ご自由にお過ごしください。"]
[]
["●検査後"]
["　検査終了後も体内に少量の放射性物質が残っています。"]
["　検査当日は、妊婦や乳幼児との接触はなるべく避けてください。"]
[]
["●注意事項とお願い"]
["　・妊娠している可能性のある方や授乳中の方は申し出てください。"]
["　 授乳中の方は一定期間授乳を控える必要があります。"]
[]
["　・検査日時の変更やキャンセルは検査前営業日16時までに必ず下記へお知らせください。"]
["　 その他、検査についてご不明な点がございましたら下記へご連絡ください。"]
[]
["湘南鎌倉総合病院　　",null,null,"営業日時　平日・土曜日9時～16時"]
["先端医療センター１F　D14　PET/SPECT検査室直通　Tel:0467-46-9921"]

{"sheet":"オクトレオスキャン","index":17,"n_rows":46,"n_cols":12,"rows_kept":46,"cut":false,"hidden":true,"merged":[[41,0,41,11],[6,6,7,6],[2,0,3,11],[4,0,5,11],[8,0,9,1],[8,2,9,2],[6,11,7,11],[8,6,9,6],[8,7,9,7],[8,8,9,8],[8,9,9,9],[8,10,9,10],[10,11,11,11],[10,0,11,1],[10,2,11,2],[10,3,11,3],[0,0,1,1],[0,2,1,9],[0,10,1,11],[8,3,9,3],[8,4,9,4],[8,5,9,5],[6,0,7,1],[6,2,7,2],[6,3,7,3],[6,4,7,4],[6,5,7,5],[8,11,9,11],[6,7,7,7],[6,8,7,8],[6,9,7,9],[6,10,7,10],[10,9,11,9],[10,10,11,10],[10,4,11,4],[10,5,11,5],[10,6,11,6],[10,7,11,7],[10,8,11,8]]}
["お名前",null,{"$f":"IF(氏名=\"\",\"\",氏名)","v":""},null,null,null,null,null,null,null,"様"]
[]
["SPECT‐CT　予約および説明書"]
[]
["検査名：オクトレオスキャン"]
[]
["注射",null,{"$f":"IF(予約年=\"\",\"\",予約年)","v":""},"年",{"$f":"IF(予約月=\"\",\"\",予約月)","v":""},"月",{"$f":"IF(予約日=\"\",\"\",予約日)","v":""},"日",{"$f":"IF(予約時=\"\",\"\",予約時)","v":""},"時",{"$f":"IF(予約分=\"\",\"\",予約分)","v":""},"分"]
[]
["撮影",null,null,"年",null,"月",null,"日",{"$f":"I7+4","v":{"$error":"#VALUE!"}},"時",{"$f":"K7","v":""},"分"]
[]
["2日目撮影",null,null,null,null,null,null,null,{"$f":"I7","v":""},"時",{"$f":"K7","v":""},"分"]
[]
[]
["※予約時間の３０分前までに病院お越しいただき、紹介窓口で受付後、　"]
["１５分前までに先端医療センター１F　D１４  PET/SPECT受付へお越しください。"]
[]
["●核医学検査とは"]
["　からだの特定の部位にあつまる放射性同位元素(ﾗｼﾞｵｱｲｿﾄｰﾌﾟ)を静脈注射し、"]
["　各臓器や組織へ集まる様子を撮影することで、その機能や形態を調べる検査です。"]
[]
["●食事・服薬・服装に関して"]
["　飲食・服薬の制限はありません。"]
["　ボタン、金具がある場合は着替えていただきます。着替えやすい服装でお越しください。"]
["　補聴器、眼鏡、アクセサリ類は外していただきます。"]
[]
["●検査の流れ"]
["　１日目：注射(約５分)⇒休憩(４時間)⇒撮影(約６０分)"]
["　２日目：撮影(約６０分)　のみ"]
["　休憩時間は、ご自由にお過ごしください。"]
["　検査直前に排尿していただきます。"]
["　※お薬が尿から排出されるので汚染防止のため男性の方も"]
["　座った状態での排尿をお願いします。"]
[]
["●検査後"]
["　検査終了後も体内に少量の放射性物質が残っています。"]
["　お薬の注射から２～３日は、妊婦や乳幼児との接触はなるべく避けてください。"]
[]
["●注意事項とお願い"]
["　・妊娠している可能性のある方や授乳中の方は申し出てください。"]
["　 授乳中の方は一定期間授乳を控える必要があります。"]
[]
["　・検査日時の変更やキャンセルは検査日2週間前の16時までに必ず下記へお知らせください。"]
["　 その他、検査についてご不明な点がございましたら下記へご連絡ください。"]
[]
["湘南鎌倉総合病院　　",null,null,"営業日時　平日・土曜日9時～16時"]
["先端医療センター１F　D14　PET/SPECT検査室直通　Tel:0467-46-9921"]

{"sheet":"脳血流シンチ(ECD)","index":18,"n_rows":38,"n_cols":12,"rows_kept":38,"cut":false,"hidden":true,"merged":[[33,0,33,11],[6,11,7,11],[6,4,7,4],[6,5,7,5],[6,6,7,6],[6,7,7,7],[6,8,7,8],[6,9,7,9],[6,0,7,1],[6,2,7,2],[6,3,7,3],[6,10,7,10],[2,0,3,11],[4,0,5,11],[0,0,1,1],[0,2,1,9],[0,10,1,11]]}
["お名前",null,{"$f":"IF(氏名=\"\",\"\",氏名)","v":""},null,null,null,null,null,null,null,"様"]
[]
["SPECT‐CT　予約および説明書"]
[]
["検査名：脳血流シンチ(ECD)"]
[]
["注射・撮影",null,{"$f":"IF(予約年=\"\",\"\",予約年)","v":""},"年",{"$f":"IF(予約月=\"\",\"\",予約月)","v":""},"月",{"$f":"IF(予約日=\"\",\"\",予約日)","v":""},"日",{"$f":"IF(予約時=\"\",\"\",予約時)","v":""},"時",{"$f":"IF(予約分=\"\",\"\",予約分)","v":""},"分"]
[]
[]
["※予約時間の３０分前までに病院お越しいただき、紹介窓口で受付後、　"]
["１５分前までに先端医療センター１F　D１４  PET/SPECT受付へお越しください。"]
[]
["●核医学検査とは"]
["　からだの特定の部位にあつまる放射性同位元素(ﾗｼﾞｵｱｲｿﾄｰﾌﾟ)を静脈注射し、"]
["　各臓器や組織へ集まる様子を撮影することで、その機能や形態を調べる検査です。"]
[]
["●食事・服薬・服装に関して"]
["　飲食・服薬の制限はありません。"]
["　首周りにボタン、金具がある場合は着替えていただきます。"]
["　補聴器、眼鏡、アクセサリ類は外していただきます。"]
[]
["●検査の流れ"]
["〇全体でかかる時間約４０分"]
["　検査ベッド上で注射⇒撮影(２分)⇒安静(１０分)⇒撮影(約２０分)"]
[]
["●検査後"]
["　検査終了後も体内に少量の放射性物質が残っています。"]
["　検査当日は、妊婦や乳幼児との接触はなるべく避けてください。"]
[]
["●注意事項とお願い"]
["　・妊娠している可能性のある方や授乳中の方は申し出てください。"]
["　 授乳中の方は一定期間授乳を控える必要があります。"]
[]
["　・検査日時の変更やキャンセルは検査前営業日16時までに必ず下記へお知らせください。"]
["　 その他、検査についてご不明な点がございましたら下記へご連絡ください。"]
[]
["湘南鎌倉総合病院　　",null,null,"営業日時　平日・土曜日9時～16時"]
["先端医療センター１F　D14　PET/SPECT検査室直通　Tel:0467-46-9921"]

{"sheet":"脳血流シンチ(IMP)","index":19,"n_rows":38,"n_cols":12,"rows_kept":38,"cut":false,"hidden":true,"merged":[[33,0,33,11],[6,11,7,11],[6,4,7,4],[6,5,7,5],[6,6,7,6],[6,7,7,7],[6,8,7,8],[6,9,7,9],[6,0,7,1],[6,2,7,2],[6,3,7,3],[6,10,7,10],[2,0,3,11],[4,0,5,11],[0,0,1,1],[0,2,1,9],[0,10,1,11]]}
["お名前",null,{"$f":"IF(氏名=\"\",\"\",氏名)","v":""},null,null,null,null,null,null,null,"様"]
[]
["SPECT‐CT　予約および説明書"]
[]
["検査名：脳血流シンチ(IMP)"]
[]
["注射・撮影",null,{"$f":"IF(予約年=\"\",\"\",予約年)","v":""},"年",{"$f":"IF(予約月=\"\",\"\",予約月)","v":""},"月",{"$f":"IF(予約日=\"\",\"\",予約日)","v":""},"日",{"$f":"IF(予約時=\"\",\"\",予約時)","v":""},"時",{"$f":"IF(予約分=\"\",\"\",予約分)","v":""},"分"]
[]
[]
["※予約時間の３０分前までに病院お越しいただき、紹介窓口で受付後、　"]
["１５分前までに先端医療センター１F　D１４  PET/SPECT受付へお越しください。"]
[]
["●核医学検査とは"]
["　からだの特定の部位にあつまる放射性同位元素(ﾗｼﾞｵｱｲｿﾄｰﾌﾟ)を静脈注射し、"]
["　各臓器や組織へ集まる様子を撮影することで、その機能や形態を調べる検査です。"]
[]
["●食事・服薬・服装に関して"]
["　飲食・服薬の制限はありません。"]
["　首周りにボタン、金具がある場合は着替えていただきます。"]
["　補聴器、眼鏡、アクセサリ類は外していただきます。"]
[]
["●検査の流れ"]
["〇全体でかかる時間約１時間"]
["　検査ベッド上で注射⇒撮影(２分)⇒安静(１５分)⇒撮影(約３０分)"]
[]
["●検査後"]
["　検査終了後も体内に少量の放射性物質が残っています。"]
["　検査当日は、妊婦や乳幼児との接触はなるべく避けてください。"]
[]
["●注意事項とお願い"]
["　・妊娠している可能性のある方や授乳中の方は申し出てください。"]
["　 授乳中の方は一定期間授乳を控える必要があります。"]
[]
["　・検査日時の変更やキャンセルは検査前営業日16時までに必ず下記へお知らせください。"]
["　 その他、検査についてご不明な点がございましたら下記へご連絡ください。"]
[]
["湘南鎌倉総合病院　　",null,null,"営業日時　平日・土曜日9時～16時"]
["先端医療センター１F　D14　PET/SPECT検査室直通　Tel:0467-46-9921"]

{"sheet":"肝アシアロシンチ","index":20,"n_rows":38,"n_cols":12,"rows_kept":38,"cut":false,"hidden":true,"merged":[[6,9,7,9],[6,10,7,10],[6,11,7,11],[33,0,33,11],[6,0,7,1],[6,2,7,2],[6,3,7,3],[6,4,7,4],[6,5,7,5],[6,6,7,6],[6,7,7,7],[6,8,7,8],[0,0,1,1],[0,2,1,9],[0,10,1,11],[2,0,3,11],[4,0,5,11]]}
["お名前",null,{"$f":"IF(氏名=\"\",\"\",氏名)","v":""},null,null,null,null,null,null,null,"様"]
[]
["SPECT‐CT　予約および説明書"]
[]
["検査名：肝アシアロシンチ"]
[]
["注射・撮影",null,{"$f":"IF(予約年=\"\",\"\",予約年)","v":""},"年",{"$f":"IF(予約月=\"\",\"\",予約月)","v":""},"月",{"$f":"IF(予約日=\"\",\"\",予約日)","v":""},"日",{"$f":"IF(予約時=\"\",\"\",予約時)","v":""},"時",{"$f":"IF(予約分=\"\",\"\",予約分)","v":""},"分"]
[]
[]
["※予約時間の30分前までに外来受付機で受付後、先端医療センター１F　Ｄ１４　"]
["　 PET/SPECT受付へお越しください。"]
[]
["●核医学検査とは"]
["　からだの特定の部位にあつまる放射性同位元素(ﾗｼﾞｵｱｲｿﾄｰﾌﾟ)を静脈注射し、"]
["　各臓器や組織へ集まる様子を撮影することで、その機能や形態を調べる検査です。"]
[]
["●食事・服薬・服装に関して"]
["  予約時間の４時間前から絶食となります。"]
["  服薬の制限はありません"]
["　検査着に着替えていただきます。着替えやすい服装でお越しください。"]
["　アクセサリ類は外していただきます。"]
["　"]
["●検査の流れ"]
["　ベッド上で注射と同時に撮影開始(約５０分)"]
[]
["●検査後"]
["　検査終了後も体内に少量の放射性物質が残っています。"]
["　検査当日は妊婦や乳幼児との接触はなるべく避けてください。"]
[]
["●注意事項とお願い"]
["　・妊娠している可能性のある方や授乳中の方は申し出てください。"]
["　 授乳中の方は一定期間授乳を控える必要があります。"]
[]
["　・検査日時の変更やキャンセルは検査前営業日16時までに必ず下記へお知らせください。"]
["　 その他、検査についてご不明な点がございましたら下記へご連絡ください。"]
[]
["湘南鎌倉総合病院　　",null,null,"営業日時　平日・土曜日9時～16時"]
["先端医療センター１F　D14　PET/SPECT検査室直通　Tel:0467-46-9921"]

{"sheet":"甲状腺Tc","index":21,"n_rows":39,"n_cols":12,"rows_kept":39,"cut":false,"hidden":true,"merged":[[34,0,34,11],[6,11,7,11],[6,4,7,4],[6,5,7,5],[6,6,7,6],[6,7,7,7],[6,8,7,8],[6,9,7,9],[6,0,7,1],[6,2,7,2],[6,3,7,3],[6,10,7,10],[2,0,3,11],[4,0,5,11],[0,0,1,1],[0,2,1,9],[0,10,1,11]]}
["お名前",null,{"$f":"IF(氏名=\"\",\"\",氏名)","v":""},null,null,null,null,null,null,null,"様"]
[]
["SPECT‐CT　予約および説明書"]
[]
["検査名：甲状腺摂取率TcO4-"]
[]
["注射・撮影",null,{"$f":"IF(予約年=\"\",\"\",予約年)","v":""},"年",{"$f":"IF(予約月=\"\",\"\",予約月)","v":""},"月",{"$f":"IF(予約日=\"\",\"\",予約日)","v":""},"日",{"$f":"IF(予約時=\"\",\"\",予約時)","v":""},"時",{"$f":"IF(予約分=\"\",\"\",予約分)","v":""},"分"]
[]
[]
["※予約時間の３０分前までに病院お越しいただき、紹介窓口で受付後、　"]
["１５分前までに先端医療センター１F　D１４  PET/SPECT受付へお越しください。"]
[]
["●核医学検査とは"]
["　からだの特定の部位にあつまる放射性同位元素(ﾗｼﾞｵｱｲｿﾄｰﾌﾟ)を静脈注射し、"]
["　各臓器や組織へ集まる様子を撮影することで、その機能や形態を調べる検査です。"]
[]
["●食事・服薬・服装に関して"]
["　検査当日の検査1時間目より食事を摂らないでください。　飲水は可能です。"]
["　首周りにボタン、金具がある場合は着替えていただきます。"]
["　補聴器、眼鏡、アクセサリ類は外していただきます。"]
[]
["●検査の流れ"]
["〇全体でかかる時間約１時間"]
["　注射(５分)⇒休憩(30分)⇒撮影(１０分)"]
["　注射後はそのままお待ちいただきます。"]
[]
["●検査後"]
["　検査終了後も体内に少量の放射性物質が残っています。"]
["　検査当日は、妊婦や乳幼児との接触はなるべく避けてください。"]
[]
["●注意事項とお願い"]
["　・妊娠している可能性のある方や授乳中の方は申し出てください。"]
["　 授乳中の方は一定期間授乳を控える必要があります。"]
[]
["　・検査日時の変更やキャンセルは検査前営業日16時までに必ず下記へお知らせください。"]
["　 その他、検査についてご不明な点がございましたら下記へご連絡ください。"]
[]
["湘南鎌倉総合病院　　",null,null,"営業日時　平日・土曜日9時～16時"]
["先端医療センター１F　D14　PET/SPECT検査室直通　Tel:0467-46-9921"]

{"sheet":"唾液腺","index":22,"n_rows":40,"n_cols":12,"rows_kept":40,"cut":false,"hidden":true,"merged":[[35,0,35,11],[6,11,7,11],[6,4,7,4],[6,5,7,5],[6,6,7,6],[6,7,7,7],[6,8,7,8],[6,9,7,9],[6,0,7,1],[6,2,7,2],[6,3,7,3],[6,10,7,10],[2,0,3,11],[4,0,5,11],[0,0,1,1],[0,2,1,9],[0,10,1,11]]}
["お名前",null,{"$f":"IF(氏名=\"\",\"\",氏名)","v":""},null,null,null,null,null,null,null,"様"]
[]
["SPECT‐CT　予約および説明書"]
[]
["検査名：唾液腺シンチ(負荷あり)"]
[]
["注射・撮影",null,{"$f":"IF(予約年=\"\",\"\",予約年)","v":""},"年",{"$f":"IF(予約月=\"\",\"\",予約月)","v":""},"月",{"$f":"IF(予約日=\"\",\"\",予約日)","v":""},"日",{"$f":"IF(予約時=\"\",\"\",予約時)","v":""},"時",{"$f":"IF(予約分=\"\",\"\",予約分)","v":""},"分"]
[]
[]
["※予約時間の３０分前までに病院お越しいただき、紹介窓口で受付後、　"]
["１５分前までに先端医療センター１F　D１４  PET/SPECT受付へお越しください。"]
[]
["●核医学検査とは"]
["　からだの特定の部位にあつまる放射性同位元素(ﾗｼﾞｵｱｲｿﾄｰﾌﾟ)を静脈注射し、"]
["　各臓器や組織へ集まる様子を撮影することで、その機能や形態を調べる検査です。"]
[]
["●食事・服薬・服装に関して"]
["　検査当日の検査1時間目より食事を摂らないでください。　飲水は水飲み可能です。"]
["　服薬の制限はありません。"]
["　首周りにボタン、金具がある場合は着替えていただきます。"]
["　補聴器、眼鏡、アクセサリ類は外していただきます。"]
[]
["●検査の流れ"]
["〇全体でかかる時間約１時間"]
["　検査ベッド上で注射⇒撮影(約３０分)"]
["　検査の途中で口の中にビタミンC剤を入れ負荷検査をさせていただきます。"]
[]
["●検査後"]
["　検査終了後も体内に少量の放射性物質が残っています。"]
["　検査当日は妊婦や乳幼児との接触はなるべく避けてください。"]
[]
["●注意事項とお願い"]
["　・妊娠している可能性のある方や授乳中の方は申し出てください。"]
["　 授乳中の方は一定期間授乳を控える必要があります。"]
[]
["　・検査日時の変更やキャンセルは検査前営業日16時までに必ず下記へお知らせください。"]
["　 その他、検査についてご不明な点がございましたら下記へご連絡ください。"]
[]
["湘南鎌倉総合病院　　",null,null,"営業日時　平日・土曜日9時～16時"]
["先端医療センター１F　D14　PET/SPECT検査室直通　Tel:0467-46-9921"]

{"sheet":"腎動態シンチ(MAG3)","index":23,"n_rows":39,"n_cols":12,"rows_kept":39,"cut":false,"hidden":true,"merged":[[34,0,34,11],[6,0,7,1],[6,2,7,2],[6,3,7,3],[6,4,7,4],[6,5,7,5],[6,6,7,6],[6,7,7,7],[6,8,7,8],[6,9,7,9],[6,10,7,10],[6,11,7,11],[2,0,3,11],[4,0,5,11],[0,0,1,1],[0,2,1,9],[0,10,1,11]]}
["お名前",null,{"$f":"IF(氏名=\"\",\"\",氏名)","v":""},null,null,null,null,null,null,null,"様"]
[]
["SPECT‐CT　予約および説明書"]
[]
["検査名：腎動態シンチ(MAG3)"]
[]
["注射・撮影",null,{"$f":"IF(予約年=\"\",\"\",予約年)","v":""},"年",{"$f":"IF(予約月=\"\",\"\",予約月)","v":""},"月",{"$f":"IF(予約日=\"\",\"\",予約日)","v":""},"日",{"$f":"IF(予約時=\"\",\"\",予約時)","v":""},"時",{"$f":"IF(予約分=\"\",\"\",予約分)","v":""},"分"]
[]
[]
["※予約時間の60分前までに病院お越しいただき、紹介窓口で受付後、　"]
["１５分前までに先端医療センター１F　D１４  PET/SPECT受付へお越しください。"]
[]
["●核医学検査とは"]
["　からだの特定の部位にあつまる放射性同位元素(ﾗｼﾞｵｱｲｿﾄｰﾌﾟ)を静脈注射し、"]
["　各臓器や組織へ集まる様子を撮影することで、その機能や形態を調べる検査です。"]
[]
["●食事・服薬・服装に関して"]
["　飲食・服薬の制限はありません。"]
["　腹まわりにボタン金具がある場合は、検査着に着替えていただきます。"]
["　アクセサリ類は外していただきます。着替えやすい服装でお越しください。"]
[]
["●検査の流れ"]
["〇全体でかかる時間約１時間"]
["　水分摂取制限がなければ検査約３０分前より飲水"]
["　検査ベッド上で注射⇒撮影(約３０分)"]
[]
["●検査後"]
["　検査終了後も体内に少量の放射性物質が残っています。"]
["　検査当日は妊婦や乳幼児との接触はなるべく避けてください。"]
[]
["●注意事項とお願い"]
["　・妊娠している可能性のある方や授乳中の方は申し出てください。"]
["　 授乳中の方は一定期間授乳を控える必要があります。"]
[]
["　・検査日時の変更やキャンセルは検査前営業日16時までに必ず下記へお知らせください。"]
["　 その他、検査についてご不明な点がございましたら下記へご連絡ください。"]
[]
["湘南鎌倉総合病院　　",null,null,"営業日時　平日・土曜日9時～16時"]
["先端医療センター１F　D14　PET/SPECT検査室直通　Tel:0467-46-9921"]

{"sheet":"腎動態シンチ(DTPA)","index":24,"n_rows":39,"n_cols":12,"rows_kept":39,"cut":false,"hidden":true,"merged":[[34,0,34,11],[6,11,7,11],[6,4,7,4],[6,5,7,5],[6,6,7,6],[6,7,7,7],[6,8,7,8],[6,9,7,9],[6,0,7,1],[6,2,7,2],[6,3,7,3],[6,10,7,10],[2,0,3,11],[4,0,5,11],[0,0,1,1],[0,2,1,9],[0,10,1,11]]}
["お名前",null,{"$f":"IF(氏名=\"\",\"\",氏名)","v":""},null,null,null,null,null,null,null,"様"]
[]
["SPECT‐CT　予約および説明書"]
[]
["検査名：腎動態シンチ(DTPA)"]
[]
["注射・撮影",null,{"$f":"IF(予約年=\"\",\"\",予約年)","v":""},"年",{"$f":"IF(予約月=\"\",\"\",予約月)","v":""},"月",{"$f":"IF(予約日=\"\",\"\",予約日)","v":""},"日",{"$f":"IF(予約時=\"\",\"\",予約時)","v":""},"時",{"$f":"IF(予約分=\"\",\"\",予約分)","v":""},"分"]
[]
[]
["※予約時間の60分前までに病院お越しいただき、紹介窓口で受付後、　"]
["１５分前までに先端医療センター１F　D１４  PET/SPECT受付へお越しください。"]
[]
["●核医学検査とは"]
["　からだの特定の部位にあつまる放射性同位元素(ﾗｼﾞｵｱｲｿﾄｰﾌﾟ)を静脈注射し、"]
["　各臓器や組織へ集まる様子を撮影することで、その機能や形態を調べる検査です。"]
[]
["●食事・服薬・服装に関して"]
["　飲食・服薬の制限はありません。"]
["　腹まわりにボタン金具がある場合は、検査着に着替えていただきます。"]
["　アクセサリ類は外していただきます。着替えやすい服装でお越しください。"]
[]
["●検査の流れ"]
["〇全体でかかる時間約１時間"]
["　水分摂取制限がなければ検査約３０分前より飲水"]
["　検査ベッド上で注射⇒撮影(約３０分)"]
[]
["●検査後"]
["　検査終了後も体内に少量の放射性物質が残っています。"]
["　検査当日は妊婦や乳幼児との接触はなるべく避けてください。"]
[]
["●注意事項とお願い"]
["　・妊娠している可能性のある方や授乳中の方は申し出てください。"]
["　 授乳中の方は一定期間授乳を控える必要があります。"]
[]
["　・検査日時の変更やキャンセルは検査前営業日16時までに必ず下記へお知らせください。"]
["　 その他、検査についてご不明な点がございましたら下記へご連絡ください。"]
[]
["湘南鎌倉総合病院　　",null,null,"営業日時　平日・土曜日9時～16時"]
["先端医療センター１F　D14　PET/SPECT検査室直通　Tel:0467-46-9921"]

{"sheet":"腎静態シンチ(DMSA)","index":25,"n_rows":38,"n_cols":12,"rows_kept":38,"cut":false,"hidden":true,"merged":[[33,0,33,11],[6,11,7,11],[6,4,7,4],[6,5,7,5],[6,6,7,6],[6,7,7,7],[6,8,7,8],[6,9,7,9],[6,0,7,1],[6,2,7,2],[6,3,7,3],[6,10,7,10],[2,0,3,11],[4,0,5,11],[0,0,1,1],[0,2,1,9],[0,10,1,11]]}
["お名前",null,{"$f":"IF(氏名=\"\",\"\",氏名)","v":""},null,null,null,null,null,null,null,"様"]
[]
["SPECT‐CT　予約および説明書"]
[]
["検査名：腎静態シンチ(DMSA)"]
[]
["注射・撮影",null,{"$f":"IF(予約年=\"\",\"\",予約年)","v":""},"年",{"$f":"IF(予約月=\"\",\"\",予約月)","v":""},"月",{"$f":"IF(予約日=\"\",\"\",予約日)","v":""},"日",{"$f":"IF(予約時=\"\",\"\",予約時)","v":""},"時",{"$f":"IF(予約分=\"\",\"\",予約分)","v":""},"分"]
[]
[]
["※予約時間の３０分前までに病院お越しいただき、紹介窓口で受付後、　"]
["１５分前までに先端医療センター１F　D１４  PET/SPECT受付へお越しください。"]
[]
["●核医学検査とは"]
["　からだの特定の部位にあつまる放射性同位元素(ﾗｼﾞｵｱｲｿﾄｰﾌﾟ)を静脈注射し、"]
["　各臓器や組織へ集まる様子を撮影することで、その機能や形態を調べる検査です。"]
[]
["●食事・服薬・服装に関して"]
["　飲食・服薬の制限はありません。"]
["　腹まわりにボタン金具がある場合は、検査着に着替えていただきます。"]
["　アクセサリ類は外していただきます。着替えやすい服装でお越しください。"]
[]
["●検査の流れ"]
["〇全体でかかる時間約３時間"]
["　注射(約５分)⇒休憩(約２時間)⇒撮影(約２０分)"]
[]
["●検査後"]
["　検査終了後も体内に少量の放射性物質が残っています。"]
["　検査当日は妊婦や乳幼児との接触はなるべく避けてください。"]
[]
["●注意事項とお願い"]
["　・妊娠している可能性のある方や授乳中の方は申し出てください。"]
["　 授乳中の方は一定期間授乳を控える必要があります。"]
[]
["　・検査日時の変更やキャンセルは検査前営業日16時までに必ず下記へお知らせください。"]
["　 その他、検査についてご不明な点がございましたら下記へご連絡ください。"]
[]
["湘南鎌倉総合病院　　",null,null,"営業日時　平日・土曜日9時～16時"]
["先端医療センター１F　D14　PET/SPECT検査室直通　Tel:0467-46-9921"]

{"sheet":"肺血流シンチ(MAA)","index":26,"n_rows":38,"n_cols":12,"rows_kept":38,"cut":false,"hidden":true,"merged":[[33,0,33,11],[6,11,7,11],[6,4,7,4],[6,5,7,5],[6,6,7,6],[6,7,7,7],[6,8,7,8],[6,9,7,9],[6,0,7,1],[6,2,7,2],[6,3,7,3],[6,10,7,10],[2,0,3,11],[4,0,5,11],[0,0,1,1],[0,2,1,9],[0,10,1,11]]}
["お名前",null,{"$f":"IF(氏名=\"\",\"\",氏名)","v":""},null,null,null,null,null,null,null,"様"]
[]
["SPECT‐CT　予約および説明書"]
[]
["検査名：肺血流シンチ(MAA)"]
[]
["注射・撮影",null,{"$f":"IF(予約年=\"\",\"\",予約年)","v":""},"年",{"$f":"IF(予約月=\"\",\"\",予約月)","v":""},"月",{"$f":"IF(予約日=\"\",\"\",予約日)","v":""},"日",{"$f":"IF(予約時=\"\",\"\",予約時)","v":""},"時",{"$f":"IF(予約分=\"\",\"\",予約分)","v":""},"分"]
[]
[]
["※予約時間の３０分前までに病院お越しいただき、紹介窓口で受付後、　"]
["１５分前までに先端医療センター１F　D１４  PET/SPECT受付へお越しください。"]
[]
["●核医学検査とは"]
["　からだの特定の部位にあつまる放射性同位元素(ﾗｼﾞｵｱｲｿﾄｰﾌﾟ)を静脈注射し、"]
["　各臓器や組織へ集まる様子を撮影することで、その機能や形態を調べる検査です。"]
[]
["●食事・服薬・服装に関して"]
["　飲食・服薬の制限はありません。"]
["　ボタン金具がある場合は、検査着に着替えていただきます。"]
["　アクセサリ類は外していただきます。着替えやすい服装でお越しください。"]
[]
["●検査の流れ"]
[]
["　検査ベッド上で注射⇒撮影(約３０分)"]
[]
["●検査後"]
["　検査終了後も体内に少量の放射性物質が残っています。"]
["　検査当日は妊婦や乳幼児との接触はなるべく避けてください。"]
[]
["●注意事項とお願い"]
["　・妊娠している可能性のある方や授乳中の方は申し出てください。"]
["　 授乳中の方は一定期間授乳を控える必要があります。"]
[]
["　・検査日時の変更やキャンセルは検査前営業日16時までに必ず下記へお知らせください。"]
["　 その他、検査についてご不明な点がございましたら下記へご連絡ください。"]
[]
["湘南鎌倉総合病院　　",null,null,"営業日時　平日・土曜日9時～16時"]
["先端医療センター１F　D14　PET/SPECT検査室直通　Tel:0467-46-9921"]

{"sheet":"肺血流シンチ(MAA)シャントのみ","index":27,"n_rows":38,"n_cols":12,"rows_kept":38,"cut":false,"hidden":true,"merged":[[33,0,33,11],[6,11,7,11],[6,4,7,4],[6,5,7,5],[6,6,7,6],[6,7,7,7],[6,8,7,8],[6,9,7,9],[6,0,7,1],[6,2,7,2],[6,3,7,3],[6,10,7,10],[2,0,3,11],[4,0,5,11],[0,0,1,1],[0,2,1,9],[0,10,1,11]]}
["お名前",null,{"$f":"IF(氏名=\"\",\"\",氏名)","v":""},null,null,null,null,null,null,null,"様"]
[]
["SPECT‐CT　予約および説明書"]
[]
["検査名：肺血流シンチ(MAA)シャント率のみ"]
[]
["注射・撮影",null,{"$f":"IF(予約年=\"\",\"\",予約年)","v":""},"年",{"$f":"IF(予約月=\"\",\"\",予約月)","v":""},"月",{"$f":"IF(予約日=\"\",\"\",予約日)","v":""},"日",{"$f":"IF(予約時=\"\",\"\",予約時)","v":""},"時",{"$f":"IF(予約分=\"\",\"\",予約分)","v":""},"分"]
[]
[]
["※予約時間の３０分前までに病院お越しいただき、紹介窓口で受付後、　"]
["１５分前までに先端医療センター１F　D１４  PET/SPECT受付へお越しください。"]
[]
["●核医学検査とは"]
["　からだの特定の部位にあつまる放射性同位元素(ﾗｼﾞｵｱｲｿﾄｰﾌﾟ)を静脈注射し、"]
["　各臓器や組織へ集まる様子を撮影することで、その機能や形態を調べる検査です。"]
[]
["●食事・服薬・服装に関して"]
["　飲食・服薬の制限はありません。"]
["　全身の検査です。ボタン金具がある場合は、検査着に着替えていただきます。"]
["　アクセサリ類は外していただきます。着替えやすい服装でお越しください。"]
[]
["●検査の流れ"]
[]
["　検査ベッド上で注射⇒撮影(約１５分)"]
[]
["●検査後"]
["　検査終了後も体内に少量の放射性物質が残っています。"]
["　検査当日は妊婦や乳幼児との接触はなるべく避けてください。"]
[]
["●注意事項とお願い"]
["　・妊娠している可能性のある方や授乳中の方は申し出てください。"]
["　 授乳中の方は一定期間授乳を控える必要があります。"]
[]
["　・検査日時の変更やキャンセルは検査前営業日16時までに必ず下記へお知らせください。"]
["　 その他、検査についてご不明な点がございましたら下記へご連絡ください。"]
[]
["湘南鎌倉総合病院　　",null,null,"営業日時　平日・土曜日9時～16時"]
["先端医療センター１F　D14　PET/SPECT検査室直通　Tel:0467-46-9921"]

{"sheet":"肺血流シンチ(MAA)シャント率含む","index":28,"n_rows":38,"n_cols":12,"rows_kept":38,"cut":false,"hidden":true,"merged":[[33,0,33,11],[6,11,7,11],[6,4,7,4],[6,5,7,5],[6,6,7,6],[6,7,7,7],[6,8,7,8],[6,9,7,9],[6,0,7,1],[6,2,7,2],[6,3,7,3],[6,10,7,10],[2,0,3,11],[4,0,5,11],[0,0,1,1],[0,2,1,9],[0,10,1,11]]}
["お名前",null,{"$f":"IF(氏名=\"\",\"\",氏名)","v":""},null,null,null,null,null,null,null,"様"]
[]
["SPECT‐CT　予約および説明書"]
[]
["検査名：肺血流シンチ(MAA)シャント率含む"]
[]
["注射・撮影",null,{"$f":"IF(予約年=\"\",\"\",予約年)","v":""},"年",{"$f":"IF(予約月=\"\",\"\",予約月)","v":""},"月",{"$f":"IF(予約日=\"\",\"\",予約日)","v":""},"日",{"$f":"IF(予約時=\"\",\"\",予約時)","v":""},"時",{"$f":"IF(予約分=\"\",\"\",予約分)","v":""},"分"]
[]
[]
["※予約時間の３０分前までに病院お越しいただき、紹介窓口で受付後、　"]
["１５分前までに先端医療センター１F　D１４  PET/SPECT受付へお越しください。"]
[]
["●核医学検査とは"]
["　からだの特定の部位にあつまる放射性同位元素(ﾗｼﾞｵｱｲｿﾄｰﾌﾟ)を静脈注射し、"]
["　各臓器や組織へ集まる様子を撮影することで、その機能や形態を調べる検査です。"]
[]
["●食事・服薬・服装に関して"]
["　飲食・服薬の制限はありません。"]
["　全身の検査です。ボタン金具がある場合は、検査着に着替えていただきます。"]
["　アクセサリ類は外していただきます。着替えやすい服装でお越しください。"]
[]
["●検査の流れ"]
[]
["　検査ベッド上で注射⇒撮影(約５０分)"]
[]
["●検査後"]
["　検査終了後も体内に少量の放射性物質が残っています。"]
["　検査当日は妊婦や乳幼児との接触はなるべく避けてください。"]
[]
["●注意事項とお願い"]
["　・妊娠している可能性のある方や授乳中の方は申し出てください。"]
["　 授乳中の方は一定期間授乳を控える必要があります。"]
[]
["　・検査日時の変更やキャンセルは検査前営業日16時までに必ず下記へお知らせください。"]
["　 その他、検査についてご不明な点がございましたら下記へご連絡ください。"]
[]
["湘南鎌倉総合病院　　",null,null,"営業日時　平日・土曜日9時～16時"]
["先端医療センター１F　D14　PET/SPECT検査室直通　Tel:0467-46-9921"]